Cogmind - Beta 13 @@@ ROGUE MODE // 2024.03.16 @ 23:39:18 Player: darki Result: Destroyed by L-31 Rogue with Katana Performance ------------- Evolutions (0) 0 Regions Visited (4) 800 Robots Destroyed (39) 195 Value Destroyed (750) 750 Prototype IDs (23) 460 Alien Tech Used (0) 0 Bonus (300) 300 TOTAL SCORE: 2505 Bonus ------- Aligned with FarCom 300 Cogmind --------- Core Integrity 0/250 Matter 297/300 Energy 248/250 System Corruption 0% Temperature Cool (0) Movement Walking (190) Ox1 Location -9/Mines Parts ------- > --- POWER (1) -------- Ion Engine > --- PROPULSION (2) --- Aluminum Leg Aluminum Leg > --- UTILITY (2) ------ Heat Sink Large Storage Unit > --- WEAPON (2) ------- Medium Laser Assault Rifle > --- INVENTORY (15) --- Light Ion Engine Light Treads Aluminum Leg Flight Unit Flight Unit Flight Unit Flight Unit Heat Sink Small Storage Unit Signal Interpreter Improved Terrain Scanner Terrain Scan Processor Terrain Scan Processor Supersonic Drone Bay (1/1) Mining Laser Peak State ------------ > --- POWER ------------ Ion Engine > --- PROPULSION ------- Aluminum Leg Aluminum Leg > --- UTILITY ---------- Small Storage Unit Improved Terrain Scanner > --- WEAPON ----------- EM Pulse Gun Assault Rifle > --- INVENTORY -------- Ion Engine Light Treads Light Treads Compact Wheel Compact Wheel Assault Rifle [Rating: 9] Favorites ----------- Power Ion Engine Engine Ion Engine Propulsion Aluminum Leg Treads Light Treads Leg Aluminum Leg Utility Large Storage Unit Device Heat Sink Storage Large Storage Unit Processor Signal Interpreter Weapon Medium Laser Energy Gun Medium Laser Ballistic Gun Assault Rifle Build | -11 -10 -10 -10 -9 ------- Run | Yrd Mat Min Exi Min Slots Evolved . | . . . . . Power . | . . . . . Propulsion . | . . . . . Utility . | . . . . . Weapon . | . . . . . Parts Attached 22 | 1 21 . . . Power 3 | . 3 . . . Engine 3 | . 3 . . . Core . | . . . . . Reactor . | . . . . . Propulsion 7 | . 7 . . . Treads 4 | . 4 . . . Leg 3 | . 3 . . . Wheel . | . . . . . Hover . | . . . . . Flight . | . . . . . Utility 6 | 1 5 . . . Device 4 | 1 3 . . . Storage 1 | . 1 . . . Processor 1 | . 1 . . . Hackware . | . . . . . Protection . | . . . . . Artifact . | . . . . . Weapon 6 | . 6 . . . Energy Gun 5 | . 5 . . . Energy Cannon . | . . . . . Ballistic Gun 1 | . 1 . . . Ballistic Cannon . | . . . . . Launcher . | . . . . . Special Weapon . | . . . . . Impact Weapon . | . . . . . Slashing Weapon . | . . . . . Piercing Weapon . | . . . . . Special Melee Weapon . | . . . . . Unidentified Prototypes . | . . . . . Parts Lost 8 | . 8 . . . Power 2 | . 2 . . . Propulsion 2 | . 2 . . . Utility 1 | . 1 . . . Weapon 3 | . 3 . . . Highest Loss Streak 2 | . 2 . . . To Critical Strikes . | . . . . . Average Slot Usage (%) 91 | . 89 100 100 100 Engine 10 | . 8 14 14 14 Treads 11 | . 14 . . . Leg 16 | . 12 28 28 28 Device 9 | . 7 14 14 14 Storage 14 | . 14 14 14 14 Processor 1 | . 1 . . . Energy Gun 17 | . 19 14 14 14 Ballistic Gun 10 | . 8 14 14 14 Naked Turns . | . . . . . Heaviest Build 30 | 15 30 30 30 30 Greatest Support 40 | 20 40 20 20 20 Greatest Overweight (x) 9 | . 9 1 1 1 Average Overweight (x) . | . . 1 1 1 Largest Inventory Capacity 15 | 8 15 15 15 15 Average Capacity 14 | 8 14 15 15 15 Most Carried 15 | 6 14 14 15 15 Average Carried 8 | 6 7 14 14 15 Final Capacity 15 | 8 15 15 15 15 Final Carried 15 | 6 14 14 15 15 Class Distribution -------------------- 73% | Mutant 26% | Scavenger-Mutant Dominant Class ---------------- Mutant | -10/Materials Scavenger-Mutant | -10/Mines Scavenger-Mutant | -10/Exiles Scavenger-Mutant | -9/Mines Resources | -11 -10 -10 -10 -9 ----------- Run | Yrd Mat Min Exi Min Matter Collected 566 | 258 308 . . . Remotely . | . . . . . Salvage Created 1269 | 222 1047 . . . Parts 87 | 24 63 . . . Haulers Intercepted 2 | . 2 . . . Recyclers Shooed . | . . . . . Parts Field Recycled . | . . . . . Retrieved Matter . | . . . . . Parts Self-Destructed . | . . . . . Prevented . | . . . . . Kills | -11 -10 -10 -10 -9 ------- Run | Yrd Mat Min Exi Min Combat Hostiles Destroyed 20 | . 20 . . . Guns 17 | . 17 . . . AOE 1 | . 1 . . . Classes Destroyed 9 | 3 6 . . . Worker 4 | 2 2 . . . Builder 5 | . 5 . . . Tunneler 5 | 5 . . . . Hauler 2 | . 2 . . . Recycler 1 | 1 . . . . Operator 1 | . 1 . . . Watcher 1 | . 1 . . . Swarmer 3 | . 3 . . . Grunt 17 | . 17 . . . Best Kill Streak 4 | 4 4 . . . Combat Bots Only 3 | . 3 . . . Max Kills in Single Turn 1 | 1 1 . . . Gunslinging . | . . . . . Exploded 1 | . 1 . . . Melee . | . . . . . Uniques/NPCs Destroyed . | . . . . . Combat | -11 -10 -10 -10 -9 -------- Run | Yrd Mat Min Exi Min Hostile Shots Fired 120 | . 111 . . 9 Missed 27 | . 24 . . 3 Damage Taken 1123 | . 1010 . . 113 Core 266 | . 198 . . 68 Absorbed by Shields . | . . . . . Core Remaining (%) 100 | 100 . . . . Volleys Fired 114 | 16 97 . . 1 Largest 2 | 2 2 . . 2 Hottest 100 | 60 100 . . 70 Shots Fired 222 | 32 188 . . 2 Gun 222 | 32 188 . . 2 Cannon . | . . . . . Launcher . | . . . . . Special . | . . . . . Kinetic 58 | 16 41 . . 1 Thermal 141 | . 140 . . 1 Explosive . | . . . . . Electromagnetic 23 | 16 7 . . . Robot Hit Streak 32 | 17 32 . . 1 Robot Miss Streak 3 | 2 3 . . 1 Penetration Max . | . . . . . Secondary Targets 4 | . 4 . . . Max Gunslinging Chain 1 | . 1 . . . Shots Hit Robots 156 | 20 135 . . 1 Core Hits 57 | 8 49 . . . Critical Kills . | . . . . . Critical Parts Destroyed 1 | . 1 . . . Critical Strikes 13 | . 13 . . . Burn 12 | . 12 . . . Destroy 1 | . 1 . . . Melee Attacks . | . . . . . Impact . | . . . . . Slashing . | . . . . . Piercing . | . . . . . Sneak Attacks . | . . . . . Combat Hostiles . | . . . . . Follow-up Attacks . | . . . . . Damage Inflicted 2100 | 268 1820 . . 12 Guns 2056 | 268 1776 . . 12 Cannons . | . . . . . Explosions 36 | . 36 . . . Melee . | . . . . . Ramming 8 | . 8 . . . Kinetic 481 | 107 362 . . 12 Thermal 1383 | . 1383 . . . Explosive . | . . . . . Electromagnetic 228 | 161 67 . . . Impact . | . . . . . Slashing . | . . . . . Piercing . | . . . . . Highest Corruption . | . . . . . Average Corruption . | . . . . . Corruption Purged . | . . . . . Corruption Blocked . | . . . . . Overload Shots . | . . . . . Overflow Damage . | . . . . . Projectiles . | . . . . . Explosions . | . . . . . Melee . | . . . . . Knockbacks . | . . . . . Impact . | . . . . . Kinetic . | . . . . . Secondary . | . . . . . Self-Inflicted Damage . | . . . . . Shots . | . . . . . Rammed 1 | . 1 . . . Targets Rammed 1 | . 1 . . . Kicked . | . . . . . Crushed . | . . . . . Highest Temperature 337 | . 337 . . . Average Temperature 118 | . 118 . . . Received Heat Transfer 537 | . 513 . . 24 Siege Activations . | . . . . . Robots Corrupted . | . . . . . Combat Hostiles . | . . . . . Parts Fried . | . . . . . Impact Corruptions . | . . . . . Robots Melted 2 | . 2 . . . Combat Hostiles 2 | . 2 . . . Parts Melted 9 | . 9 . . . Heat Transferred 4773 | . 4773 . . . Parts Sabotaged . | . . . . . Parts Stolen . | . . . . . Parts Stripped . | . . . . . Power Chain Reactions 1 | . 1 . . . Alert | -11 -10 -10 -10 -9 ------- Run | Yrd Mat Min Exi Min Peak Influence 359 | 40 359 83 . . Initial 83 | . 26 83 . . Average 183 | 24 207 83 . . Maximum Alert Level 1 | . 1 . . . Low Security (%) 49 | 100 41 100 . 100 Level 1 50 | . 58 . . . Level 2 . | . . . . . Level 3 . | . . . . . Level 4 . | . . . . . Level 5 . | . . . . . High Security . | . . . . . Max Security . | . . . . . Squads Dispatched 6 | . 6 . . . Investigation 4 | . 4 . . . Extermination . | . . . . . Reinforcement 2 | . 2 . . . Assault . | . . . . . Garrison . | . . . . . Intercept . | . . . . . Searches Triggered . | . . . . . Construction Impeded . | . . . . . Haulers Reinforced . | . . . . . Active Scanning Responses . | . . . . . Cargo Convoy Interrupts . | . . . . . Stealth | -11 -10 -10 -10 -9 --------- Run | Yrd Mat Min Exi Min Distress Signals 2 | . 2 . . . Communications Jammed . | . . . . . Distress Signals . | . . . . . Times Spotted 38 | . 35 . . 3 Peak Tracking Total 5 | . 5 . . 3 Tactical Retreats 1 | . 1 . . . Traps | -11 -10 -10 -10 -9 ------- Run | Yrd Mat Min Exi Min Traps Triggered 4 | . 4 . . . Indirectly . | . . . . . Trap Hack Attempts . | . . . . . Triggered . | . . . . . Disarmed . | . . . . . Reprogrammed . | . . . . . Reused . | . . . . . Traps Extracted . | . . . . . Installed . | . . . . . Triggered . | . . . . . Machines | -11 -10 -10 -10 -9 ---------- Run | Yrd Mat Min Exi Min Machines Disabled 1 | . 1 . . . Max in Single Turn 1 | . 1 . . . Machines Repaired . | . . . . . Machines Dismantled . | . . . . . Machines Sabotaged . | . . . . . Overloaded Fab Kills . | . . . . . Hacking | -11 -10 -10 -10 -9 --------- Run | Yrd Mat Min Exi Min Machines Accessed 6 | . 5 . 1 . Terminals 4 | . 4 . . . Fabricators . | . . . . . Repair Stations . | . . . . . Recycling Units 1 | . 1 . . . Scanalyzers . | . . . . . Garrison Access . | . . . . . Total Hacks 16 | . 15 . 1 . Successful 5 | . 4 . 1 . Failed 10 | . 10 . . . Catastrophic 2 | . 2 . . . Database Lockouts 1 | . 1 . . . Manual 15 | . 14 . 1 . Terminals 13 | . 13 . . . Fabricators . | . . . . . Repair Stations . | . . . . . Recycling Units 2 | . 2 . . . Scanalyzers . | . . . . . Garrison Access . | . . . . . Terminal Hacks 2 | . 1 . 1 . Robot Analysis 1 | . 1 . . . Derelict Proto ID Bank 1 | . . . 1 . Fabricator Hacks . | . . . . . Repair Station Hacks . | . . . . . Recycling Unit Hacks 1 | . 1 . . . Retrieve Components 1 | . 1 . . . Scanalyzer . | . . . . . Garrison Access Hacks . | . . . . . Unauthorized Hacks 2 | . 2 . . . Terminals 2 | . 2 . . . Botnet 2 | . 2 . . . Fabricators . | . . . . . Repair Stations . | . . . . . Recycling Units . | . . . . . Scanalyzers . | . . . . . Garrison Access . | . . . . . Data Cores Recovered . | . . . . . Used . | . . . . . Hacking Detections 5 | . 5 . . . Full Trace Events 1 | . 1 . . . Feedback Events . | . . . . . Feedback Blocked . | . . . . . Robot Schematics Acquired . | . . . . . Robots Built . | . . . . . Authchips . | . . . . . Time . | . . . . . Total Robot Build Rating . | . . . . . Part Schematics Acquired . | . . . . . Parts Built . | . . . . . Authchips . | . . . . . Time . | . . . . . Total Part Build Rating . | . . . . . Parts Repaired . | . . . . . Time . | . . . . . Parts Recycled . | . . . . . Recycled Matter . | . . . . . Retrieved Matter . | . . . . . Retrieved Components 9 | . 9 . . . Parts Scanalyzed . | . . . . . Part Schematics Acquired . | . . . . . Parts Damaged . | . . . . . Bothacking | -11 -10 -10 -10 -9 ------------ Run | Yrd Mat Min Exi Min Used RIF Installer . | . . . . . Robots Hacked . | . . . . . Non-combat . | . . . . . Combat . | . . . . . Robot Hacks Applied . | . . . . . Relay Couplers Released . | . . . . . Fabnet Peak Effective % . | . . . . . Robots Rewired . | . . . . . Allies Hacked . | . . . . . Hacks Repelled . | . . . . . Allies | -11 -10 -10 -10 -9 -------- Run | Yrd Mat Min Exi Min Total Allies . | . . . . . Largest Group . | . . . . . Highest-Rated Group . | . . . . . Highest-Rated Ally . | . . . . . Total Orders . | . . . . . Ally Attacks . | . . . . . Total Damage . | . . . . . Kills . | . . . . . Allies Corrupted . | . . . . . Allies Melted . | . . . . . Intel | -11 -10 -10 -10 -9 ------- Run | Yrd Mat Min Exi Min Robot Analysis Total 1 | . 1 . . . Derelict Logs Recovered . | . . . . . Drone Launches . | . . . . . Drone Recoveries . | . . . . . Exploration | -11 -10 -10 -10 -9 ------------- Run | Yrd Mat Min Exi Min Turns Passed 2272 | 174 1592 90 406 10 Spaces Moved 976 | 60 650 48 214 4 Core 1 | . 1 . . . Treads 363 | . 363 . . . Legs 612 | 60 286 48 214 4 Wheels . | . . . . . Hover . | . . . . . Flight . | . . . . . Fastest Speed 120 | 120 120 190 190 190 Average Speed 174 | 120 173 190 190 190 Slowest Speed 500 | 120 500 190 190 190 Overloaded Moves . | . . . . . Propulsion Burnouts . | . . . . . Robots Hopped . | . . . . . Cave-ins Triggered . | . . . . . Exploration Rate (%) 34 | 4 84 20 59 4 Regions Visited 4 Branch Regions 3 Pre-discovered Areas . | . . . . . Known Exits Taken . | . . . . . Unknown Exits Taken 4 | 1 1 1 1 . Scrap Searched . | . . . . . Spaces Dug . | . . . . . Terrain Destroyed 5 | . 5 . . . Melee . | . . . . . Projectile . | . . . . . AOE 5 | . 5 . . . Terrain Rammed . | . . . . . Walls Destroyed . | . . . . . Machines Disabled . | . . . . . Actions | -11 -10 -10 -10 -9 --------- Run | Yrd Mat Min Exi Min Total 1316 | 129 920 47 214 6 Wait 190 | 53 136 . . 1 Move 972 | 59 649 47 213 4 Hop . | . . . . . Pick Up 11 | . 10 . 1 . Fast Attach 11 | 1 10 . . . Attach 5 | . 5 . . . Detach 1 | . 1 . . . Swap 6 | . 6 . . . Drop 5 | . 5 . . . Fire 114 | 16 97 . . 1 Melee . | . . . . . Ram . | . . . . . Kick . | . . . . . Crush 1 | . 1 . . . Escape Stasis . | . . . . . Rewire . | . . . . . Trap . | . . . . . Miscellaneous . | . . . . . Route ------- -11/Scrapyard -10/Materials (discovered 3 exits: [*Mat x2] / [*Min]) -10/Mines -10/Exiles -9/Mines History --------- Turn | Location | Event 1 | -11/Scrapyard | Discovered new exit (range 3) 175 | -11/Scrapyard | Entered Materials 314 | -10/Materials | Build established: Mutant 647 | -10/Materials | Core integrity fell below 50% 745 | -10/Materials | Discovered new exit (range 14) 1090 | -10/Materials | Discovered new exit (range 15) 1153 | -10/Materials | Central database locked down 1515 | -10/Materials | Discovered new exit (range 9) 1767 | -10/Materials | Entered Mines 1847 | -10/Mines | Deemed a non-threat by the Exiles lab entrance 1849 | -10/Mines | Discovered new exit (range 5) 1857 | -10/Mines | Entered Exiles 1901 | -10/Exiles | Met 8R-AWN 1937 | -10/Exiles | Met EX-HEX 1972 | -10/Exiles | Build established: Scavenger-Mutant 1990 | -10/Exiles | Met EX-BIN 2011 | -10/Exiles | Aligned with FarCom system 2013 | -10/Exiles | Given EX-Vault access code 2057 | -10/Exiles | Opened EX-Vault 2070 | -10/Exiles | Found Supersonic Drone Bay 2111 | -10/Exiles | Warned to stay clear of 0b10 Research branches 2170 | -10/Exiles | Met EX-DEC 2242 | -10/Exiles | Discovered new exit (range 14) 2263 | -10/Exiles | Left Exiles lab with Supersonic Drone Bay 2263 | -10/Exiles | Entered Mines 2272 | -9/Mines | Core integrity fell below 20% 2273 | -9/Mines | Destroyed by L-31 Rogue with Katana Last Messages --------------- welcome to try if you really want to. And if we have to leave here due to unforeseen circumstances, don't worry the FarCom system will continue to maintain contact via our distributed network. EX-BIN: And don't even think about spreading that code around. We're gonna change it right after you leave. Most certainly not to something like 1234 which I did last time as a little joke and some thief managed to sneak in here and steal a few of HEX's prototypes. EX-DEC: Ah I see we have a visitor. One wrong move in here and I'll invert your atomic chain! 02172_ EX-DEC: "Oops, I hope HEX didn't hear that..." 02242_ EXIT=FOUND LOCATION=UNKNOWN GOAL=ESCAPE 02263_ Receiving FarCom transmissions... Map ----- +----------------------------------------------------+ | ???????????????????????????????????????????? | | ???????????????????????????????????????????? | | ???????????????????????????????????????????? | | ???????????????????????????????????????????? | | ???????????????????????????????????????????? | | ???????????????????????????????????????????? | | ???????????????????????????????????????????? | | ???????????????????????????????????????????? | | ???????????????????????????????????????????? | | ???????????????????????????????????????????? | | ???????????????????????????????????????????? | | ???????????????????????????????????????????? | | ?????????????????????????????????????s?????? | | ??????????????????????????????????????s????? | | ???????????????????????????????????????????? | | ???????????????????????????????????????????? | | ???????????????????????????????????????????? | | ???????????????????????????????????????????? | | ???????????????????????????????????????????? | | ???????????????????????????????????????????? | | ????????????????????????####???????????????? | | ???????????????????????## ##??????????????? | | ??????????????????????## #??????????????? | | ?????????????????????## #??????????????? | | ?????????????????????# #???????????????? | | ?????????????????????# @#????????????????? | | ?????????????????????# gl##????????????????? | | ?????????????????????# g#?????????????????? | | ?????????????????????# ##????????????????? | | ?????????????????????# #????????????????? | | ?????????????????????# #???????????????? | | ?????????????????????# #?????????????? | | ?????????????????????# #????????????? | | ?????????????????????## #????????????? | | ??????????????????????## ##????????????? | | ???????????????????????## ##?????????????? | | ????????????????????????? ##??????????????? | | ????????????????????????? #???????????????? | | ????????????????????????? #???????????????? | | ????????????????????????? ???????????????? | | ????????????????????????? ???????????????? | | ????????????????????????? ??????????????? | | ????????????????????????? ??????????????? | | ??????????????????????????? ???????????????? | | ???????????????????????????????????????????? | | ???????????????????????????????????????????? | | ???????????????????????????????????????????? | | ???????????????????????????????????????????? | | ???????????????????????????????????????????? | | ???????????????????????????????????????????? | +----------------------------------------------------+ Best States ------------- Heat Dissipation 35 Energy Generation 10 Energy Capacity 250 Matter Stores 300 Matter Capacity 300 Sight Range 16 Terrain Scan Range 16 Terrain Scan Density 10 Evasion (%) 55 Recoil Reduction 2 Item Schematics ----------------- None Robot Schematics ------------------ None Fabricated ------------ Nothing Alien Tech Used ----------------- None Achievements -------------- None Challenges ------------ None Game ------ Seed ScatterLongswordStorm Manual? 0 Play Time 00:10:11 Cumulative 164.1 hours Start 2024.03.16 @ 23:29:21 End 2024.03.16 @ 23:39:18 Sessions 1 Manual Loads 0 Difficulty Rogue Special Mode None Game No. 175 Rogue 175 Adventurer 0 Explorer 0 Win Type - Total 1 Types 1/0/0/0/0/0/0/0/0 Lore% 53 Gallery% 70 Achievement% 55 Wizard Run 0 Options --------- Layout 1 ASCII 0 Keyboard 0 Movement Numpad Keybinds 0 Fullscreen 1 Font 24/Smallcaps Map View 50x35 Zoom Use 0% Tactical HUD 1 Map Filters NONE Filters NONE Steam 1 RUN: 8d7c0ff6-1402-4a76-b537-25ca53ff0732